fUSD/lending_fUSD_20251031
["ID","MTS","AMOUNT","RATE_DAILY","PERIOD"]
[392778801,1761947814869,-500.0,0.00031232,120]
[392778802,1761947814894,-676.97,0.00031232,120]
[392778803,1761947814918,-591.93,0.00031232,120]
[392778804,1761947814943,-517.66838148,0.00031232,120]
[392778805,1761947814967,-500.0,0.00031232,120]
[392778806,1761947814992,-500.0,0.00031232,120]
[392778807,1761947815020,-500.0,0.00031232,120]
[392778808,1761947815045,-667.8,0.00031232,120]
[392778809,1761947815070,-500.0,0.00031232,120]
[392778810,1761947815094,-500.0,0.00031232,120]
[392778811,1761947815118,-500.0,0.00031232,120]
[392778812,1761947815142,-500.0,0.00031232,120]
[392778813,1761947815166,-906.11,0.00031232,120]
[392778814,1761947815191,-500.0,0.00031232,120]
[392778815,1761947815215,-772.2,0.00031232,120]
[392778816,1761947815247,-510.67489243,0.00031232,120]
[392778817,1761947815278,-500.0,0.00031232,120]
[392778818,1761947815303,-500.0,0.00031232,120]
[392778819,1761947815329,-500.0,0.00031232,120]
[392778820,1761947815355,-500.0,0.00031232,120]
[392778821,1761947815381,-500.0,0.00031232,120]
[392778822,1761947815406,-500.0,0.00031232,120]
[392778823,1761947815431,-500.0,0.00031232,120]
[392778824,1761947815456,-500.0,0.00031232,120]
[392778825,1761947815482,-500.0,0.00031232,120]
[392778826,1761947815507,-314.9548964,0.00031232,120]
[392778827,1761947815532,-500.0,0.00031232,120]
[392778828,1761947815559,-500.0,0.00031232,120]
[392778829,1761947815585,-500.0,0.00031232,120]
[392778830,1761947815612,-500.0,0.00031232,120]
[392778831,1761947815638,-504.72247493,0.00031232,120]
[392778832,1761947815664,-500.0,0.00031232,120]
[392778833,1761947815696,-500.0,0.00031232,120]
[392778834,1761947815722,-500.0,0.00031232,120]
[392778835,1761947815749,-500.0,0.00031232,120]
[392778836,1761947815776,-508.84442889,0.00031232,120]
[392778837,1761947815803,-500.0,0.00031232,120]
[392778838,1761947815829,-586.16419382,0.00031232,120]
[392778839,1761947815856,-500.0,0.00031232,120]
[392778840,1761947815886,-500.0,0.00031232,120]
[392778841,1761947815915,-500.0,0.00031232,120]
[392778842,1761947815945,-514.3963867,0.00031232,120]
[392778843,1761947815973,-500.0,0.00031232,120]
[392778844,1761947816000,-500.0,0.00031232,120]
[392778845,1761947816030,-500.0,0.00031232,120]
[392778846,1761947816057,-500.0,0.00031232,120]
[392778847,1761947816084,-601.82,0.00031232,120]
[392778848,1761947816110,-527.62171934,0.00031232,120]
[392778849,1761947816144,-500.0,0.00031232,120]
[392778850,1761947816171,-500.0,0.00031232,120]
[392778851,1761947816198,-676.03,0.00031232,120]
[392778852,1761947816225,-522.81413454,0.00031232,120]
[392778853,1761947816253,-500.0,0.00031232,120]
[392778854,1761947816280,-500.0,0.00031232,120]
[392778855,1761947816306,-519.92609805,0.00031232,120]
[392778856,1761947816333,-650.61,0.00031232,120]
[392778857,1761947816361,-500.0,0.00031232,120]
[392778858,1761947816387,-515.97654438,0.00031232,120]
[392778859,1761947816413,-511.67740085,0.00031232,120]
[392778860,1761947816439,-500.0,0.00031232,120]
[392778861,1761947816465,-500.0,0.00031232,120]
[392778862,1761947816492,-500.0,0.00031232,120]
[392778863,1761947816519,-500.0,0.00031232,120]
[392778864,1761947816548,-500.0,0.00031232,120]
[392778865,1761947816573,-502.99296523,0.00031232,120]
[392778866,1761947816598,-500.0,0.00031232,120]
[392778867,1761947816623,-500.0,0.00031232,120]
[392778868,1761947816648,-510.58352496,0.00031232,120]
[392778869,1761947816674,-500.0,0.00031232,120]
[392778870,1761947816700,-256.6368444,0.00031232,120]
[392778871,1761947816726,-515.72501769,0.00031232,120]
[392778872,1761947816751,-500.0,0.00031232,120]
[392778873,1761947816777,-685.46,0.00031232,120]
[392778874,1761947816802,-514.82149617,0.00031232,120]
[392778875,1761947816829,-876.11,0.00031232,120]
[392778876,1761947816854,-500.0,0.00031232,120]
[392778877,1761947816880,-500.0,0.00031232,120]
[392778878,1761947816905,-505.26078985,0.00031232,120]
[392778879,1761947816932,-500.0,0.00031232,120]
[392778880,1761947816956,-500.0,0.00031232,120]
[392778881,1761947816981,-683.53,0.00031232,120]
[392778882,1761947817233,-500.0,0.00031232,120]
[392778883,1761947817260,-518.62787143,0.00031232,120]
[392778884,1761947817285,-514.87254064,0.00031232,120]
[392778885,1761947817311,-500.0,0.00031232,120]
[392778886,1761947817335,-517.91894363,0.00031232,120]
[392778887,1761947817361,-500.0,0.00031232,120]
[392778888,1761947817386,-546.3585809,0.00031232,120]
[392778889,1761947817410,-243.41490736,0.00031232,120]
[392778890,1761947817434,-515.85170048,0.00031232,120]
[392778891,1761947817460,-500.0,0.00031232,120]
[392778892,1761947817484,-440.04074925,0.00031232,120]
[392778893,1761947817509,-500.0,0.00031232,120]
[392778894,1761947817532,-500.0,0.00031232,120]
[392778895,1761947817557,-520.29606356,0.00031232,120]
[392778896,1761947817581,-500.0,0.00031232,120]
[392778897,1761947817605,-506.22792584,0.00031232,120]
[392778898,1761947817630,-500.0,0.00031232,120]
[392778899,1761947817654,-500.0,0.00031232,120]
[392778900,1761947817678,-500.0,0.00031232,120]
[392778901,1761947817703,-500.0,0.00031232,120]
[392778902,1761947817727,-503.50668387,0.00031232,120]
[392778903,1761947817752,-500.0,0.00031232,120]
[392778904,1761947817778,-500.0,0.00031232,120]
[392778905,1761947817803,-500.0,0.00031232,120]
[392778906,1761947817831,-595.39,0.00031232,120]
[392778907,1761947817857,-523.33007296,0.00031232,120]
[392778908,1761947817882,-500.0,0.00031232,120]
[392778909,1761947817908,-500.0,0.00031232,120]
[392778910,1761947817932,-500.0,0.00031232,120]
[392778911,1761947817958,-500.0,0.00031232,120]
[392778912,1761947817982,-500.0,0.00031232,120]
[392778913,1761947818011,-500.0,0.00031232,120]
[392778914,1761947818037,-500.0,0.00031232,120]
[392778915,1761947818062,-500.0,0.00031232,120]
[392778916,1761947818087,-522.680829,0.00031232,120]
[392778917,1761947818111,-500.0,0.00031232,120]
[392778918,1761947818137,-500.0,0.00031232,120]
[392778919,1761947818162,-500.0,0.00031232,120]
[392778920,1761947818189,-500.0,0.00031232,120]
[392778921,1761947818213,-523.33489434,0.00031232,120]
[392778922,1761947818238,-524.89658829,0.00031232,120]
[392778923,1761947818263,-517.80926544,0.00031232,120]
[392778924,1761947818288,-514.3922656,0.00031232,120]
[392778925,1761947818319,-500.0,0.00031232,120]
[392778926,1761947818357,-500.0,0.00031232,120]
[392778927,1761947818382,-507.81116688,0.00031232,120]
[392778928,1761947818407,-500.0,0.00031232,120]
[392778929,1761947818432,-176.71484423,0.00031232,120]
[392778930,1761947818457,-518.79175347,0.00031232,120]
[392778931,1761947818482,-500.0,0.00031232,120]
[392778932,1761947818508,-804.56,0.00031232,120]
[392778933,1761947818534,-716.27,0.00031232,120]
[392778934,1761947818559,-500.0,0.00031232,120]
[392778935,1761947818583,-500.0,0.00031232,120]
[392778936,1761947818609,-500.0,0.00031232,120]
[392778937,1761947818633,-500.0,0.00031232,120]
[392778938,1761947818657,-554.11231729,0.00031232,120]
[392778939,1761947818683,-511.71001504,0.00031232,120]
[392778940,1761947818708,-500.0,0.00031232,120]
[392778941,1761947818731,-500.0,0.00031232,120]
[392778942,1761947818758,-500.0,0.00031232,120]
[392778943,1761947818783,-500.0,0.00031232,120]
[392778944,1761947818807,-505.82373354,0.00031232,120]
[392778945,1761947818831,-500.0,0.00031232,120]
[392778946,1761947818856,-500.0,0.00031232,120]
[392778947,1761947818893,-500.0,0.00031232,60]
[392778948,1761947818920,-500.0,0.00031232,120]
[392778949,1761947818946,-500.0,0.00031232,120]
[392778950,1761947818971,-500.0,0.00031232,120]
[392778951,1761947818997,-692.02,0.00031232,120]
[392778952,1761947819025,-510.66517384,0.00031232,120]
[392778953,1761947819051,-512.99869339,0.00031232,120]
[392778954,1761947819075,-500.0,0.00031232,120]
[392778955,1761947819100,-518.92947485,0.00031232,120]
[392778956,1761947819126,-500.0,0.00031232,120]
[392778957,1761947819152,-500.0,0.00031232,120]
[392778958,1761947819177,-200.0,0.00031232,120]
[392778959,1761947819202,-618.34628518,0.00031232,120]
[392778960,1761947819226,-500.0,0.00031232,120]
[392778961,1761947819251,-500.0,0.00031232,120]
[392778962,1761947819276,-508.10422019,0.00031232,120]
[392778963,1761947819300,-500.0,0.00031232,120]
[392778964,1761947819325,-500.0,0.00031232,120]
[392778965,1761947819350,-500.0,0.00031232,120]
[392778966,1761947819375,-500.0,0.00031232,120]
[392778967,1761947819400,-511.06056353,0.00031232,120]
[392778968,1761947819425,-500.0,0.00031232,120]
[392778969,1761947819450,-500.0,0.00031232,120]
[392778970,1761947819475,-500.0,0.00031232,120]
[392778971,1761947819500,-500.0,0.00031232,120]
[392778972,1761947819525,-502.97,0.00031232,120]
[392778973,1761947819550,-500.0,0.00031232,120]
[392778974,1761947819574,-507.94790304,0.00031232,120]
[392778975,1761947819600,-506.55372343,0.00031232,120]
[392778976,1761947819626,-500.0,0.00031232,120]
[392778977,1761947819653,-500.0,0.00031232,120]
[392778978,1761947819679,-500.0,0.00031232,120]
[392778979,1761947819705,-516.36231109,0.00031232,120]
[392778980,1761947819731,-539.02,0.00031232,120]
[392778981,1761947819756,-519.45515435,0.00031232,120]
[392778982,1761947819780,-500.0,0.00031232,120]
[392778983,1761947819805,-300.0,0.00031232,120]
[392778984,1761947819829,-500.0,0.00031232,120]
[392778985,1761947819853,-500.0,0.00031232,120]
[392778986,1761947819879,-507.32574179,0.00031232,120]
[392778987,1761947820084,-637.21922088,0.00031232,120]
[392778988,1761947820113,-500.0,0.00031232,120]
[392778989,1761947820140,-500.0,0.00031232,120]
[392778990,1761947820166,-500.0,0.00031232,120]
[392778991,1761947820192,-500.0,0.00031232,120]
[392778992,1761947820218,-500.0,0.00031232,120]
[392778993,1761947820244,-500.0,0.00031232,120]
[392778994,1761947820269,-500.0,0.00031232,120]
[392778995,1761947820294,-500.0,0.00031232,120]
[392778996,1761947820320,-500.0,0.00031232,120]
[392778997,1761947820344,-1095.39,0.00031232,120]
[392778998,1761947820368,-500.0,0.00031232,120]
[392778999,1761947820392,-575.7698822,0.00031232,120]
[392779000,1761947820416,-653.86,0.00031232,120]
[392779001,1761947820454,-500.0,0.00031232,120]
[392779002,1761947820490,-500.0,0.00031232,120]
[392779003,1761947820528,-585.75376977,0.00031232,120]
[392779004,1761947820565,-526.3228424,0.00031232,120]
[392779005,1761947820602,-505.26955674,0.00031232,120]
[392779006,1761947820639,-500.0,0.00031232,120]
[392779007,1761947820675,-523.87910686,0.00031232,120]
[392779008,1761947820713,-500.0,0.00031232,120]
[392779009,1761947820750,-517.36751729,0.00031232,120]
[392779010,1761947820786,-521.36158462,0.00031232,120]
[392779011,1761947820822,-500.0,0.00031232,120]
[392779012,1761947820858,-519.27095463,0.00031232,120]
[392779013,1761947820897,-500.0,0.00031232,120]
[392779014,1761947820934,-500.0,0.00031232,120]
[392779015,1761947820972,-500.0,0.00031232,120]
[392779016,1761947821011,-500.0,0.00031232,120]
[392779017,1761947821047,-633.28878057,0.00031232,120]
[392779018,1761947821084,-282.83334694,0.00031232,120]
[392779019,1761947821120,-500.0,0.00031232,120]
[392779020,1761947821156,-558.3,0.00031232,120]
[392779021,1761947821193,-500.0,0.00031232,120]
[392779022,1761947821231,-500.0,0.00031232,120]
[392779023,1761947821268,-503.1,0.00031232,120]
[392779024,1761947821305,-500.0,0.00031232,120]
[392779025,1761947821342,-1635.77,0.00031232,120]
[392779026,1761947821379,-500.0,0.00031232,120]
[392779027,1761947821416,-500.0,0.00031232,120]
[392779028,1761947821452,-409.37781575,0.00031232,120]
[392779029,1761947821490,-524.90628492,0.00031232,120]
[392779030,1761947821530,-500.0,0.00031232,120]
[392779031,1761947821569,-580.67,0.00031232,120]
[392779032,1761947821607,-500.0,0.00031232,120]
[392779033,1761947821645,-373.46625914,0.00031232,120]
[392779034,1761947821683,-500.0,0.00031232,120]
[392779035,1761947821722,-500.0,0.00031232,120]
[392779036,1761947821761,-807.26,0.00031232,120]
[392779037,1761947821799,-510.85268831,0.00031232,120]
[392779038,1761947821836,-500.0,0.00031232,120]
[392779039,1761947821875,-553.32144241,0.00031232,120]
[392779040,1761947821914,-513.27635044,0.00031232,120]
[392779041,1761947821952,-509.01830476,0.00031232,120]
[392779042,1761947821991,-500.0,0.00031232,120]
[392779043,1761947822044,-480.11534792,0.00031232,120]
[392779044,1761947822092,-502.26154602,0.00031232,120]
[392779045,1761947822138,-500.0,0.00031232,120]
[392779046,1761947822185,-500.0,0.00031232,120]
[392779047,1761947822232,-500.0,0.00031232,120]
[392779048,1761947822273,-576.79469078,0.00031232,120]
[392779049,1761947822314,-500.0,0.00031232,120]
[392779050,1761947822355,-500.0,0.00031232,120]
[392779051,1761947822394,-509.03055261,0.00031232,120]
[392779052,1761947822432,-694.81,0.00031232,120]
[392779053,1761947822470,-500.0,0.00031232,120]
[392779054,1761947822508,-500.0,0.00031232,120]
[392779055,1761947822546,-512.75698101,0.00031232,120]
[392779056,1761947822583,-500.0,0.00031232,120]
[392779057,1761947822622,-500.0,0.00031232,120]
[392779058,1761947822660,-518.91668114,0.00031232,120]
[392779059,1761947822698,-500.0,0.00031232,120]
[392779060,1761947822736,-500.0,0.00031232,60]
[392779061,1761947822774,-500.0,0.00031232,120]
[392779062,1761947822810,-410.99529249,0.00031232,120]
[392779063,1761947822847,-453.82066849,0.00031232,120]
[392779064,1761947822885,-500.0,0.00031232,120]
[392779065,1761947822922,-500.0,0.00031232,120]
[392779066,1761947822961,-500.0,0.00031232,120]
[392779067,1761947822999,-500.0,0.00031232,120]
[392779068,1761947823037,-500.0,0.00031232,120]
[392779069,1761947823076,-626.05914567,0.00031232,120]
[392779070,1761947823114,-520.12957389,0.00031232,120]
[392779071,1761947823152,-500.0,0.00031232,120]
[392779072,1761947823195,-500.0,0.00031232,120]
[392779073,1761947823236,-500.0,0.00031232,120]
[392779074,1761947823276,-500.0,0.00031232,120]
[392779075,1761947823316,-519.13501408,0.00031232,120]
[392779076,1761947823357,-500.0,0.00031232,120]
[392779077,1761947823399,-500.0,0.00031232,120]
[392779078,1761947823446,-500.0,0.00031232,120]
[392779079,1761947823491,-500.0,0.00031232,120]
[392779080,1761947823538,-526.07174934,0.00031232,120]
[392779081,1761947823577,-500.0,0.00031232,120]
[392779082,1761947823615,-508.56510113,0.00031232,120]
[392779083,1761947823652,-500.0,0.00031232,120]
[392779084,1761947823691,-507.48659554,0.00031232,120]
[392779085,1761947823729,-500.0,0.00031232,120]
[392779086,1761947823768,-514.59507953,0.00031232,120]
[392779087,1761947823806,-500.0,0.00031232,120]
[392779088,1761947823843,-546.37991646,0.00031232,120]
[392779089,1761947823882,-594.27077368,0.00031232,120]
[392779090,1761947823919,-520.74871273,0.00031232,120]
[392779091,1761947823956,-511.5977564,0.00031232,120]
[392779092,1761947823995,-500.0,0.00031232,120]
[392779093,1761947824213,-500.0,0.00031232,120]
[392779094,1761947824253,-500.0,0.00031232,120]
[392779095,1761947824293,-500.0,0.00031232,120]
[392779096,1761947824332,-500.0,0.00031232,120]
[392779097,1761947824373,-408.4851232,0.00031232,120]
[392779098,1761947824411,-500.0,0.00031232,120]
[392779099,1761947824450,-500.0,0.00031232,120]
[392779100,1761947824489,-500.0,0.00031232,120]
[392779101,1761947824530,-500.0,0.00031232,120]
[392779102,1761947824570,-500.0,0.00031232,120]
[392779103,1761947824610,-500.0,0.00031232,120]
[392779104,1761947824650,-500.0,0.00031232,120]
[392779105,1761947824691,-500.0,0.00031232,120]
[392779106,1761947824731,-500.0,0.00031232,120]
[392779107,1761947824774,-500.0,0.00031232,120]
[392779108,1761947824815,-500.0,0.00031232,120]
[392779109,1761947824854,-500.0,0.00031232,120]
[392779110,1761947824894,-500.0,0.00031232,120]
[392779111,1761947824933,-500.0,0.00031232,120]
[392779112,1761947824971,-548.13391168,0.00031232,120]
[392779113,1761947825010,-500.0,0.00031232,120]
[392779114,1761947825055,-547.74890842,0.00031232,120]
[392779115,1761947825094,-500.0,0.00031232,120]
[392779116,1761947825132,-500.0,0.00031232,120]
[392779117,1761947825172,-500.0,0.00031232,120]
[392779118,1761947825212,-500.0,0.00031232,120]
[392779119,1761947825254,-500.0,0.00031232,120]
[392779120,1761947825296,-500.0,0.00031232,120]
[392779121,1761947825337,-500.0,0.00031232,120]
[392779122,1761947825377,-500.0,0.00031232,120]
[392779123,1761947825418,-500.0,0.00031232,120]
[392779124,1761947825459,-500.0,0.00031232,120]
[392779125,1761947825499,-500.0,0.00031232,120]
[392779126,1761947825539,-776.67,0.00031232,120]
[392779127,1761947825579,-500.0,0.00031232,120]
[392779128,1761947825617,-500.0,0.00031232,120]
[392779129,1761947825657,-500.0,0.00031232,120]
[392779130,1761947825696,-500.0,0.00031232,120]
[392779131,1761947825734,-500.0,0.00031232,120]
[392779132,1761947825773,-522.49,0.00031232,120]
[392779133,1761947825810,-604.82079402,0.00031232,120]
[392779134,1761947825852,-500.0,0.00031232,120]
[392779135,1761947825891,-638.08633904,0.00031232,120]
[392779136,1761947825932,-510.16154859,0.00031232,120]
[392779137,1761947825972,-500.0,0.00031232,120]
[392779138,1761947826014,-500.0,0.00031232,120]
[392779139,1761947826054,-500.0,0.00031232,120]
[392779140,1761947826096,-500.0,0.00031232,120]
[392779141,1761947826136,-500.0,0.00031232,120]
[392779142,1761947826176,-500.0,0.00031232,120]
[392779143,1761947826216,-500.0,0.00031232,120]
[392779144,1761947826261,-500.0,0.00031232,120]
[392779145,1761947826308,-500.0,0.00031232,120]
[392779146,1761947826355,-500.0,0.00031232,120]
[392779147,1761947826394,-500.0,0.00031232,120]
[392779148,1761947826434,-500.0,0.00031232,120]
[392779149,1761947826473,-500.0,0.00031232,120]
[392779150,1761947826512,-662.18,0.00031232,120]
[392779151,1761947826552,-500.0,0.00031232,120]
[392779152,1761947826592,-500.0,0.00031232,120]
[392779153,1761947826631,-500.0,0.00031232,120]
[392779154,1761947826668,-500.0,0.00031232,120]
[392779155,1761947826705,-500.0,0.00031232,120]
[392779156,1761947826742,-500.0,0.00031232,120]
[392779157,1761947826780,-500.0,0.00031232,120]
[392779158,1761947826818,-500.0,0.00031232,120]
[392779159,1761947826855,-500.0,0.00031232,120]
[392779160,1761947826892,-500.0,0.00031232,120]
[392779161,1761947826929,-500.0,0.00031232,120]
[392779162,1761947826968,-500.0,0.00031232,120]
[392779163,1761947827006,-500.0,0.00031232,120]
[392779164,1761947827045,-333.12870577,0.00031232,120]
[392779165,1761947827085,-509.00838517,0.00031232,120]
[392779166,1761947827124,-237.37563117,0.00031232,120]
[392779167,1761947827162,-500.0,0.00031232,120]
[392779168,1761947827200,-500.0,0.00031232,120]
[392779169,1761947827238,-421.02598262,0.00031232,120]
[392779170,1761947827277,-500.0,0.00031232,120]
[392779171,1761947827315,-500.0,0.00031232,120]
[392779172,1761947827353,-500.0,0.00031232,120]
[392779173,1761947827391,-500.0,0.00031232,120]
[392779174,1761947827429,-500.0,0.00031232,120]
[392779175,1761947827467,-500.0,0.00031232,120]
[392779176,1761947827506,-500.0,0.00031232,120]
[392779177,1761947827544,-500.0,0.00031232,120]
[392779178,1761947827582,-588.52167478,0.00031232,120]
[392779179,1761947827618,-500.0,0.00031232,120]
[392779180,1761947827655,-500.0,0.00031232,120]
[392779181,1761947827693,-500.0,0.00031232,120]
[392779182,1761947827730,-500.0,0.00031232,120]
[392779183,1761947827768,-500.0,0.00031232,120]
[392779184,1761947827808,-596.94796008,0.00031232,120]
[392779185,1761947827844,-298.94364519,0.00031232,120]
[392779186,1761947827882,-500.0,0.00031232,120]
[392779187,1761947827924,-500.0,0.00031232,120]
[392779188,1761947827963,-531.99443868,0.00031232,120]
[392779189,1761947828001,-500.0,0.00031232,120]
[392779190,1761947828043,-500.0,0.00031232,120]
[392779191,1761947828083,-500.0,0.00031232,120]
[392779192,1761947828124,-515.72517955,0.00031232,120]
[392779193,1761947828164,-500.0,0.00031232,120]
[392779194,1761947828206,-500.0,0.00031232,120]
[392779195,1761947828251,-500.0,0.00031232,120]
[392779196,1761947828301,-500.0,0.00031232,120]
[392779197,1761947828345,-500.0,0.00031232,120]
[392779198,1761947828588,-572.64642505,0.00031232,120]
[392779199,1761947828632,-500.0,0.00031232,120]
[392779200,1761947828675,-500.0,0.00031232,120]
[392779201,1761947828718,-500.0,0.00031232,120]
[392779202,1761947828764,-500.0,0.00031232,120]
[392779203,1761947828808,-500.0,0.00031232,120]
[392779204,1761947828851,-500.0,0.00031232,120]
[392779205,1761947828893,-580.14432962,0.00031232,120]
[392779206,1761947828935,-500.0,0.00031232,120]
[392779207,1761947828975,-500.0,0.00031232,120]
[392779208,1761947829023,-500.0,0.00031232,120]
[392779209,1761947829064,-500.0,0.00031232,120]
[392779210,1761947829104,-500.0,0.00031232,120]
[392779211,1761947829144,-514.31595851,0.00031232,120]
[392779212,1761947829183,-583.65825981,0.00031232,120]
[392779213,1761947829222,-500.0,0.00031232,120]
[392779214,1761947829264,-500.0,0.00031232,120]
[392779215,1761947829308,-500.0,0.00031232,120]
[392779216,1761947829351,-735.51,0.00031232,120]
[392779217,1761947829390,-500.0,0.00031232,120]
[392779218,1761947829429,-500.0,0.00031232,120]
[392779219,1761947829469,-500.0,0.00031232,120]
[392779220,1761947829508,-500.0,0.00031232,120]
[392779221,1761947829546,-500.0,0.00031232,120]
[392779222,1761947829585,-500.0,0.00031232,120]
[392779223,1761947829623,-500.0,0.00031232,120]
[392779224,1761947829661,-500.0,0.00031232,120]
[392779225,1761947829699,-502.71470288,0.00031232,120]
[392779226,1761947829736,-492.35900609,0.00031232,120]
[392779227,1761947829774,-500.0,0.00031232,120]
[392779228,1761947829812,-500.0,0.00031232,120]
[392779229,1761947829849,-500.0,0.00031232,120]
[392779230,1761947829888,-500.0,0.00031232,120]
[392779231,1761947829926,-500.0,0.00031232,120]
[392779232,1761947829963,-500.0,0.00031232,120]
[392779233,1761947830001,-500.0,0.00031232,120]
[392779234,1761947830037,-500.0,0.00031232,120]
[392779235,1761947830076,-500.0,0.00031232,120]
[392779236,1761947830112,-500.0,0.00031232,120]
[392779237,1761947830148,-516.6587023,0.00031232,120]
[392779238,1761947830186,-500.0,0.00031232,120]
[392779239,1761947830222,-500.0,0.00031232,120]
[392779240,1761947830259,-500.0,0.00031232,120]
[392779241,1761947830297,-500.0,0.00031232,120]
[392779242,1761947830334,-500.0,0.00031232,120]
[392779243,1761947830371,-336.02145126,0.00031232,120]
[392779244,1761947830407,-500.0,0.00031232,120]
[392779245,1761947830444,-534.86414627,0.00031232,120]
[392779246,1761947830482,-500.0,0.00031232,120]
[392779247,1761947830518,-500.0,0.00031232,120]
[392779248,1761947830554,-606.98769601,0.00031232,120]
[392779249,1761947830592,-514.20793961,0.00031232,120]
[392779250,1761947830632,-500.0,0.00031232,120]
[392779251,1761947830673,-500.0,0.00031232,120]
[392779252,1761947830714,-500.0,0.00031232,120]
[392779253,1761947830757,-500.0,0.00031232,120]
[392779254,1761947830800,-500.0,0.00031232,120]
[392779255,1761947830844,-500.0,0.00031232,120]
[392779256,1761947830896,-500.0,0.00031232,120]
[392779257,1761947830948,-500.0,0.00031232,120]
[392779258,1761947831001,-225.09997797,0.00031232,120]
[392779259,1761947831049,-500.0,0.00031232,120]
[392779260,1761947831098,-500.0,0.00031232,120]
[392779261,1761947831144,-500.0,0.00031232,120]
[392779262,1761947831192,-608.21053219,0.00031232,120]
[392779263,1761947831242,-500.0,0.00031232,120]
[392779264,1761947831294,-500.0,0.00031232,120]
[392779265,1761947831347,-552.44290232,0.00031232,120]
[392779266,1761947831397,-500.0,0.00031232,120]
[392779267,1761947831448,-500.0,0.00031232,120]
[392779268,1761947831499,-523.15,0.00031232,120]
[392779269,1761947831550,-900.77,0.00031232,120]
[392779270,1761947831599,-512.08752108,0.00031232,100]
[392779271,1761947831648,-500.0,0.00031232,120]
[392779272,1761947831698,-500.0,0.00031232,120]
[392779273,1761947831747,-500.0,0.00031232,120]
[392779274,1761947831806,-500.0,0.00031232,120]
[392779275,1761947831866,-500.0,0.00031232,120]
[392779276,1761947831928,-503.70301422,0.00031232,120]
[392779277,1761947831989,-500.0,0.00031232,120]
[392779278,1761947832044,-500.0,0.00031232,120]
[392779279,1761947832100,-500.0,0.00031232,120]
[392779280,1761947832161,-500.0,0.00031232,120]
[392779281,1761947832216,-500.0,0.00031232,120]
[392779282,1761947832277,-500.0,0.00031232,120]
[392779283,1761947832339,-500.0,0.00031232,120]
[392779284,1761947832401,-500.0,0.00031232,120]
[392779285,1761947832456,-500.0,0.00031232,120]
[392779286,1761947832511,-501.79720775,0.00031232,120]
[392779287,1761947832566,-500.0,0.00031232,120]
[392779288,1761947832621,-500.0,0.00031232,120]
[392779289,1761947832686,-500.0,0.00031232,120]
[392779290,1761947832751,-500.0,0.00031232,120]
[392779291,1761947832816,-527.08521564,0.00031232,120]
[392779292,1761947832880,-500.0,0.00031232,120]
[392779293,1761947832935,-515.50490451,0.00031232,120]
[392779294,1761947832989,-500.0,0.00031232,120]
[392779295,1761947833052,-581.01357945,0.00031232,120]
[392779296,1761947833106,-621.982768,0.00031232,120]
[392779297,1761947833162,-500.0,0.00031232,120]
[392779298,1761947833225,-500.0,0.00031232,120]
[392779299,1761947833293,-500.0,0.00031232,120]
[392779300,1761947833349,-515.53872984,0.00031232,120]